fUSD/lending_fUSD_20260314
["ID","MTS","AMOUNT","RATE_DAILY","PERIOD"]
[408379198,1773532243913,-1500.0,0.00017022,2]
[408379199,1773532243923,-500.0,0.00017022,2]
[408379200,1773532243933,-250.0,0.00017022,2]
[408379201,1773532243942,-1500.0,0.00017022,2]
[408379202,1773532243952,-500.0,0.00017022,2]
[408379203,1773532243962,-500.0,0.00017022,2]
[408379204,1773532243971,-1500.0,0.00017022,2]
[408379205,1773532243980,-250.0,0.00017022,2]
[408379206,1773532243989,-500.0,0.00017022,2]
[408379207,1773532243998,-1500.0,0.00017022,2]
[408379208,1773532244007,-250.0,0.00017022,2]
[408379209,1773532244016,-500.0,0.00017022,2]
[408379210,1773532244025,-250.0,0.00017022,2]
[408379211,1773532244035,-1500.0,0.00017022,2]
[408379212,1773532244043,-1500.0,0.00017022,2]
[408379213,1773532244053,-250.0,0.00017022,2]
[408379214,1773532244062,-250.0,0.00017022,2]
[408379215,1773532244071,-1500.0,0.00017022,2]
[408379216,1773532244080,-1500.0,0.00017022,2]
[408379217,1773532244089,-250.0,0.00017022,2]
[408379218,1773532244098,-1500.0,0.00017022,2]
[408379219,1773532244107,-1500.0,0.00017022,2]
[408379220,1773532244117,-500.0,0.00017022,2]
[408379221,1773532244126,-250.0,0.00017022,2]
[408379222,1773532244135,-500.0,0.00017022,2]
[408379223,1773532244144,-250.0,0.00017022,2]
[408379224,1773532244153,-500.0,0.00017022,2]
[408379225,1773532244162,-250.0,0.00017022,2]
[408379226,1773532244172,-500.0,0.00017022,2]
[408379227,1773532244181,-500.0,0.00017022,2]
[408379228,1773532244190,-250.0,0.00017022,2]
[408379229,1773532244201,-500.0,0.00017022,2]
[408379230,1773532244210,-250.0,0.00017022,2]
[408379231,1773532244220,-500.0,0.00017022,2]
[408379232,1773532244230,-250.0,0.00017022,2]
[408379233,1773532244243,-500.0,0.00017022,2]
[408379234,1773532244253,-250.0,0.00017022,2]
[408379235,1773532244262,-500.0,0.00017022,2]
[408379236,1773532244271,-250.0,0.00017022,2]
[408379237,1773532244282,-500.0,0.00017022,2]
[408379238,1773532244291,-250.0,0.00017022,2]
[408379239,1773532244300,-500.0,0.00017022,2]
[408379240,1773532244313,-250.0,0.00017022,2]
[408379241,1773532244322,-250.0,0.00017022,2]
[408379242,1773532244331,-250.0,0.00017022,2]
[408379243,1773532244340,-250.0,0.00017022,2]
[408379244,1773532244350,-250.0,0.00017022,2]
[408379245,1773532244359,-151.0,0.00017022,2]
[408379246,1773532244368,-156.587,0.00017022,2]
[408379247,1773532244376,-193.72615937,0.00017022,2]
[408379248,1773532244386,-500.0,0.00017022,2]
[408379249,1773532244395,-500.0,0.00017022,2]
[408379250,1773532244405,-500.0,0.00017022,2]
[408379251,1773532244414,-500.0,0.00017022,2]
[408379252,1773532244423,-500.0,0.00017022,2]
[408379253,1773532244432,-500.0,0.00017022,2]
[408379254,1773532244441,-500.0,0.00017022,2]
[408379255,1773532244450,-500.0,0.00017022,2]
[408379256,1773532244459,-500.0,0.00017022,2]
[408379257,1773532244468,-500.0,0.00017022,2]
[408379258,1773532244477,-500.0,0.00017022,2]
[408379259,1773532244487,-878.32,0.00017032,2]
[408379260,1773532244496,-500.0,0.00017041,2]
[408379261,1773532244505,-1483.63738103,0.00017042,2]
[408379262,1773532244515,-500.0,0.00017077,2]
[408379263,1773532244524,-500.0,0.00017096,2]
[408379264,1773532244533,-500.0,0.00017132,2]
[408379265,1773532244542,-160.0,0.00017135,2]
[408379266,1773532244551,-450.0,0.0001715,2]
[408379267,1773532244560,-500.0,0.00017187,2]
[408379268,1773532244569,-200.0,0.00017225,2]
[408379269,1773532244579,-500.0,0.00017242,2]
[408379270,1773532244588,-500.0,0.00017297,2]
[408379271,1773532244598,-878.32,0.00017306,2]
[408379272,1773532244728,-8565.29471997,0.0001735,2]
[408379273,1773532244738,-500.0,0.00017352,2]
[408379274,1773532244747,-500.0,0.00017407,2]
[408379275,1773532244757,-500.0,0.00017462,2]
[408379276,1773532244766,-500.0,0.00017517,2]
[408379277,1773532244775,-736.0,0.00017558,2]
[408379278,1773532244785,-500.0,0.00017572,2]
[408379279,1773532244794,-182.07,0.0001763,2]
[408379280,1773532244803,-222.07,0.00017646,2]
[408379281,1773532244813,-500.0,0.00017701,2]
[408379282,1773532244822,-500.0,0.00017701,2]
[408379283,1773532244831,-200.0,0.00017773,2]
[408379284,1773532244841,-3176.73340396,0.00017789,2]
[408379285,1773532244851,-500.0,0.00017808,2]
[408379286,1773532244861,-2000.0,0.00017825,2]
[408379287,1773532244870,-500.0,0.00017863,2]
[408379288,1773532244880,-500.0,0.00017918,2]
[408379289,1773532244889,-250.0,0.0001797,2]
[408379290,1773532244898,-500.0,0.00017972,2]
[408379291,1773532244908,-354.90199074,0.00018027,2]
[408379292,1773532244918,-300.55,0.00018046,2]
[408379293,1773532244927,-900.0,0.00018082,7]
[408379294,1773532244936,-2600.0,0.00018082,7]
[408379295,1773532244946,-8565.29471997,0.00018204,2]
[408379296,1773532244956,-851.8323473,0.00018282,2]
[408379297,1773532244966,-176.232,0.00018288,2]
[408379298,1773532244976,-1043.0,0.00018288,2]
[408379299,1773532244986,-620.0,0.00018288,2]
[408379300,1773532244996,-1340.4,0.00018288,2]
[408379301,1773532245005,-1260.0,0.00018288,2]
[408379302,1773532245014,-150.0,0.00018288,2]
[408379303,1773532245024,-414.0,0.00018288,2]
[408379304,1773532245034,-150.0,0.00018288,2]
[408379305,1773532245043,-3292.0,0.00018305,2]
[408379306,1773532245054,-817.0,0.00018327,2]
[408379307,1773532245063,-1300.0,0.00018356,7]
[408379308,1773532245073,-7094.78,0.00018356,2]
[408379309,1773532245081,-983.0,0.00018468,5]
[408379310,1773532245090,-788.0,0.00018468,5]
[408379311,1773532245099,-168.0,0.00018688,2]
[408379312,1773532245108,-166.66,0.00018774,2]
[408379313,1773532245117,-4340.49953713,0.00018847,4]
[408379314,1773532245127,-168.0,0.00018857,2]
[408379315,1773532245136,-168.0,0.00018868,2]
[408379316,1773532245145,-500.0,0.00018888,2]
[408379317,1773532245155,-500.0,0.00018888,2]
[408379318,1773532245165,-821.26386328,0.00018888,2]
[408379319,1773532245175,-500.0,0.00018888,2]
[408379320,1773532245185,-500.0,0.00018888,2]
[408379321,1773532245196,-500.0,0.00018888,2]
[408379322,1773532245206,-515.75080416,0.00018888,2]
[408379323,1773532245215,-500.0,0.00018888,2]
[408379324,1773532245226,-500.0,0.00018888,2]
[408379325,1773532245241,-500.0,0.00018888,2]
[408379326,1773532245250,-500.0,0.00018888,2]
[408379327,1773532245260,-500.0,0.00018888,2]
[408379328,1773532245269,-500.0,0.00018888,2]
[408379329,1773532245281,-500.0,0.00018888,2]
[408379330,1773532245292,-940.87318361,0.00018888,2]
[408379331,1773532245302,-687.0,0.00018896,2]
[408379332,1773532245312,-300.0,0.00018936,2]
[408379333,1773532245323,-500.0,0.00018937,2]
[408379334,1773532245332,-500.0,0.00018937,2]
[408379335,1773532245341,-500.0,0.00018937,2]
[408379336,1773532245353,-500.0,0.00018937,2]
[408379338,1773532245363,-500.0,0.00018937,2]
[408379339,1773532245372,-741.70361886,0.00018937,2]
[408379340,1773532245381,-500.0,0.00018937,2]
[408379341,1773532245391,-500.0,0.00018937,2]
[408379342,1773532245400,-500.0,0.00018937,2]
[408379343,1773532245410,-500.0,0.00018937,2]
[408379344,1773532245420,-500.0,0.00018937,2]
[408379345,1773532245431,-500.0,0.00018937,2]
[408379346,1773532245440,-647.80367893,0.00018937,2]
[408379347,1773532245450,-500.0,0.00018937,2]
[408379348,1773532245459,-500.0,0.00018937,2]
[408379349,1773532245471,-500.0,0.00018937,2]
[408379350,1773532245481,-500.0,0.00018937,2]
[408379351,1773532245491,-500.0,0.00018937,2]
[408379352,1773532245502,-500.0,0.00018937,2]
[408379353,1773532245512,-500.0,0.00018937,2]
[408379354,1773532245523,-500.0,0.00018937,2]
[408379355,1773532245533,-500.0,0.00018937,2]
[408379356,1773532245544,-500.0,0.00018937,2]
[408379357,1773532245554,-500.0,0.00018937,2]
[408379358,1773532245563,-500.0,0.00018937,2]
[408379359,1773532245572,-500.0,0.00018937,2]
[408379360,1773532245582,-500.0,0.00018937,2]
[408379361,1773532245592,-540.44891238,0.00018937,2]
[408379362,1773532245601,-500.0,0.00018937,2]
[408379363,1773532245611,-500.0,0.00018937,2]
[408379364,1773532245620,-500.0,0.00018937,2]
[408379365,1773532245630,-500.0,0.00018937,2]
[408379366,1773532245639,-500.0,0.00018937,2]
[408379367,1773532245648,-500.0,0.00018937,2]
[408379368,1773532245658,-500.0,0.00018937,2]
[408379369,1773532245667,-500.0,0.00018937,2]
[408379370,1773532245677,-500.0,0.00018937,2]
[408379371,1773532245686,-500.0,0.00018937,2]
[408379372,1773532245695,-500.0,0.00018937,2]
[408379373,1773532245704,-500.0,0.00018937,2]
[408379374,1773532245713,-500.0,0.00018937,2]
[408379375,1773532245723,-500.0,0.00018937,2]
[408379376,1773532245734,-500.0,0.00018937,2]
[408379377,1773532245742,-683.13034951,0.00018937,2]
[408379378,1773532245751,-901.56911435,0.00018937,2]
[408379379,1773532245761,-687.0,0.00018944,2]
[408379380,1773532245770,-654.0,0.00018951,2]
[408379381,1773532245779,-5814.2549055,0.00019,2]
[408379382,1773532245788,-8565.29471997,0.00019057,2]
[408379383,1773532245797,-687.0,0.00019091,2]
[408379384,1773532245807,-687.0,0.00019122,2]
[408379385,1773532245817,-308.07062233,0.00019153,2]
[408379386,1773532245827,-781.59,0.0001916,2]
[408379387,1773532245836,-166.66,0.00019169,2]
[408379388,1773532245847,-900.0,0.00019178,7]
[408379389,1773532245856,-2600.0,0.00019178,7]
[408379390,1773532245865,-300.0,0.00019178,2]
[408379391,1773532245874,-2000.0,0.000192,2]
[408379392,1773532245883,-2000.0,0.00019445,2]
[408379393,1773532245892,-1300.0,0.00019452,7]
[408379394,1773532245901,-350.0,0.00019459,4]
[408379395,1773532245910,-687.0,0.00019544,2]
[408379396,1773532245919,-858.0,0.00019552,2]
[408379397,1773532245928,-166.66,0.00019564,2]
[408379398,1773532245938,-200.37,0.00019664,2]
[408379399,1773532245949,-244.0,0.00019676,2]
[408379400,1773532245958,-848.0,0.0001968,2]
[408379401,1773532245968,-244.0,0.000197,7]
[408379402,1773532245977,-238.0,0.000197,7]
[408379403,1773532245986,-207.0,0.000197,7]
[408379404,1773532245995,-687.0,0.00019708,2]
[408379405,1773532246004,-200.37,0.00019776,2]
[408379406,1773532246013,-2000.0,0.000198,2]
[408379407,1773532246023,-3909.0,0.00019807,2]
[408379408,1773532246032,-2954.42978653,0.0001981,2]
[408379409,1773532246041,-3909.0,0.00019821,2]
[408379410,1773532246050,-200.37,0.00019888,2]
[408379411,1773532246059,-503.46319922,0.000199,2]
[408379412,1773532246068,-1100.0,0.000199,7]
[408379413,1773532246077,-2000.0,0.000199,2]
[408379414,1773532246086,-8565.29471997,0.00019911,2]
[408379415,1773532246095,-166.66,0.00019959,2]
[408379416,1773532246104,-5273.3642305,0.00019965,2]
[408379417,1773532246113,-400.0,0.0001997,2]
[408379418,1773532246122,-400.0,0.0001997,2]
[408379420,1773532246131,-238.0,0.00019976,2]
[408379422,1773532246140,-207.0,0.00019976,2]
[408379423,1773532246150,-229.15310187,0.00019977,2]
[408379424,1773532246159,-442384.0109076,0.00019978,2]
[408379425,1773532246168,-151.0,0.00019978,2]
[408379426,1773532246177,-151.0,0.00019978,2]
[408379427,1773532246187,-5000.0,0.00019978,2]
[408379428,1773532246196,-3742.720409,0.00019978,2]
[408379429,1773532246205,-26016.9517819,0.00019981,2]
[408379430,1773532246215,-687.0,0.00019986,2]
[408379431,1773532246224,-196.82,0.00019999,2]
[408379432,1773532246234,-500.0,0.00019999,2]
[408379433,1773532246246,-500.0,0.00019999,2]
[408379434,1773532246256,-234446.37868267,0.0002,2]
[408379435,1773532246265,-150.0,0.0002,2]
[408379436,1773532246274,-316032.39179343,0.0002,2]
[408379437,1773532246285,-11116.60883131,0.0002,2]
[408379438,1773532246294,-2957.04645373,0.0002,7]
[408379439,1773532246303,-532.86230968,0.0002,7]
[408379440,1773532246313,-90404.13253817,0.0002,2]
[408379441,1773532246323,-299.99999901,0.0002,2]
[408379442,1773532246332,-4814.1337694,0.0002,2]
[408379443,1773532246342,-1205.6321,0.0002,2]
[408379444,1773532246351,-10000.0,0.0002,2]
[408379445,1773532246361,-240.38,0.0002,2]
[408379446,1773532246370,-183.259871,0.0002,2]
[408379447,1773532246379,-289.75,0.0002,2]
[408379448,1773532246388,-10000.0,0.0002,2]
[408379449,1773532246397,-1317.84763407,0.0002,2]
[408379450,1773532246408,-200.0,0.0002,2]
[408379451,1773532246417,-191.05,0.0002,2]
[408379452,1773532246427,-203.227023,0.0002,2]
[408379453,1773532246436,-177.97,0.0002,2]
[408379454,1773532246445,-268.0,0.00020036,2]
[408379455,1773532246454,-598.0,0.00020042,2]
[408379456,1773532246463,-598.0,0.00020109,2]
[408379457,1773532246475,-4609.0,0.00020136,2]
[408379458,1773532246485,-268.0,0.00020192,2]
[408379459,1773532246495,-200.0,0.000202,2]
[408379460,1773532246506,-168.0,0.00020204,2]
[408379461,1773532246516,-168.0,0.00020213,2]
[408379462,1773532246526,-900.0,0.00020274,7]
[408379463,1773532246536,-2600.0,0.00020274,7]
[408379464,1773532246547,-598.0,0.00020315,2]
[408379465,1773532246558,-268.0,0.00020354,2]
[408379466,1773532246567,-166.66,0.00020355,2]
[408379467,1773532246577,-687.0,0.00020397,2]
[408379468,1773532246588,-200.0,0.00020402,2]
[408379469,1773532246598,-268.0,0.00020428,2]
[408379470,1773532246608,-598.0,0.00020431,2]
[408379471,1773532246617,-851.8323473,0.00020455,2]
[408379472,1773532246626,-687.0,0.00020533,2]
[408379473,1773532246638,-158.51,0.00020548,2]
[408379474,1773532246648,-1300.0,0.00020548,7]
[408379475,1773532246658,-316.08,0.000206,7]
[408379476,1773532246667,-173.85,0.000206,7]
[408379477,1773532246675,-200.0,0.00020606,2]
[408379478,1773532246684,-687.0,0.00020658,2]
[408379479,1773532246693,-150.0,0.00020744,2]
[408379480,1773532246702,-166.66,0.0002075,2]
[408379481,1773532246710,-8565.29471997,0.00020764,2]
[408379482,1773532246719,-200.0,0.00020812,2]
[408379483,1773532246728,-400.0,0.0002087,2]
[408379484,1773532246737,-500.0,0.00020999,2]
[408379485,1773532246747,-1199.82709888,0.00021,2]
[408379486,1773532246756,-198.04144275,0.00021,2]
[408379487,1773532246765,-164.0,0.00021,14]
[408379488,1773532246775,-5000.0,0.00021,7]
[408379489,1773532246783,-400.0,0.00021,2]
[408379490,1773532246795,-1043.0,0.00021288,2]
[408379491,1773532246805,-1260.0,0.00021288,2]
[408379492,1773532246815,-150.0,0.00021288,2]
[408379493,1773532246825,-500.0,0.00021315,2]
[408379494,1773532246834,-900.0,0.0002137,7]
[408379495,1773532246843,-2600.0,0.0002137,7]
[408379496,1773532246852,-700.0,0.00021459,2]
[408379497,1773532246861,-223.43211581,0.000215,2]
[408379498,1773532246870,-3010.164258,0.000215,2]
[408379499,1773532246879,-158.04,0.000216,30]
[408379500,1773532246888,-8565.29471997,0.00021618,2]
[408379501,1773532246899,-3176.73340396,0.00021641,2]
[408379502,1773532246908,-1300.0,0.00021644,7]
[408379503,1773532246917,-207224.75083865,0.000217,120]
[408379504,1773532246927,-350.0,0.00021887,2]
[408379505,1773532246936,-2500.0,0.00021917,2]
[408379506,1773532246946,-2500.0,0.00021917,2]
[408379507,1773532246955,-2500.0,0.00021917,2]
[408379508,1773532246965,-2500.0,0.00021917,2]
[408379509,1773532246974,-2500.0,0.00021917,2]
[408379510,1773532246984,-2500.0,0.00021917,2]
[408379511,1773532246994,-1432.60226042,0.00021917,2]
[408379512,1773532247003,-5000.0,0.00021918,2]
[408379513,1773532247013,-153.58,0.00021918,2]
[408379514,1773532247023,-151.0,0.00021918,2]
[408379515,1773532247032,-151.0,0.00021918,2]
[408379516,1773532247041,-151.0,0.00021918,2]
[408379517,1773532247051,-151.0,0.00021918,2]
[408379518,1773532247061,-500.0,0.00021918,2]
[408379519,1773532247071,-150.0,0.00021918,2]
[408379520,1773532247081,-500.0,0.00021973,2]
[408379521,1773532247090,-500.0,0.00021999,2]
[408379522,1773532247099,-500.0,0.00021999,2]
[408379523,1773532247109,-1486.73502477,0.00022,2]
[408379524,1773532247119,-164.92,0.00022,2]
[408379525,1773532247128,-160.0,0.00022,2]
[408379526,1773532247138,-10000.0,0.00022,7]
[408379527,1773532247148,-344242.42861446,0.00022,4]
[408379528,1773532247166,-353.42,0.00022,4]
[408379529,1773532247176,-277.1987,0.00022,4]
[408379530,1773532248013,-1214.0,0.00018288,2]
[408379531,1773532248023,-1214.0,0.00021288,2]
[408379532,1773532248032,-27471.88638627,0.00022,4]
[408379533,1773532248042,-151.0,0.00022,2]
[408379534,1773532248051,-231.176919,0.00022,2]
[408379535,1773532248062,-166.0,0.00022,3]
[408379536,1773532248074,-157.0,0.00022,3]
[408379537,1773532248084,-158.0,0.00022,3]
[408379538,1773532248094,-409.11546742,0.00022028,2]
[408379539,1773532248104,-497.46772579,0.000221,2]
[408379540,1773532248114,-241.75836056,0.0002211,2]
[408379541,1773532248124,-6453.0,0.00022149,2]
[408379542,1773532248135,-507.0,0.0002225,6]
[408379543,1773532248146,-268.0,0.00022386,14]
[408379544,1773532248156,-240.37,0.000224,60]
[408379545,1773532248165,-900.0,0.00022466,7]
[408379546,1773532248175,-6358.80980765,0.00022525,2]
[408379547,1773532248186,-7756.24251954,0.00022525,2]
[408379548,1773532248201,-443.4506406,0.00022525,2]
[408379549,1773532248217,-4274.54109834,0.00022525,2]
[408379550,1773532248248,-1000.0,0.00019783,2]
[408379551,1773532248258,-79876.17113477,0.00022525,2]
[408379552,1773532248268,-851.8323473,0.00022627,2]
[408379553,1773532248278,-1176.6466052,0.00022656,2]
[408379554,1773532248287,-5805.1666176,0.00022675,2]
[408379555,1773532248296,-526.50289857,0.0002271,2]
[408379556,1773532248306,-500.0,0.00022726,2]
[408379557,1773532248316,-1300.0,0.0002274,7]
[408379558,1773532248328,-2000.0,0.000229,2]
[408379559,1773532248339,-200.0,0.000229,8]
[408379560,1773532248348,-2919.12884059,0.00023,2]
[408379561,1773532248358,-22025.0029959,0.00023093,2]
[408379562,1773532248367,-213.85,0.0002314,2]
[408379563,1773532248377,-201.32691612,0.0002314,2]
[408379564,1773532248386,-883.91131588,0.000232,2]
[408379565,1773532248396,-262.5453454,0.00023257,2]
[408379566,1773532248406,-1295.307757,0.00023276,2]
[408379567,1773532248416,-531.0,0.00023399,10]
[408379568,1773532248426,-200.0,0.000235,2]
[408379569,1773532248435,-2600.0,0.00023562,7]
[408379570,1773532248445,-2473.63,0.0002379,2]
[408379571,1773532248455,-1300.0,0.00023836,7]
[408379572,1773532248467,-4683.73321214,0.000239,17]
[408379573,1773532248477,-400.0,0.0002397,2]
[408379574,1773532248487,-400.0,0.0002397,2]
[408379575,1773532248497,-400.0,0.0002397,2]
[408379576,1773532248506,-400.0,0.0002397,2]
[408379577,1773532248517,-300.0,0.0002397,2]
[408379578,1773532248528,-1028.27263572,0.00024,2]
[408379579,1773532248538,-1243.2295206,0.00024,2]
[408379580,1773532248548,-153.58,0.00024081,2]
[408379581,1773532248558,-151.0,0.0002411,2]
[408379582,1773532248567,-150.0,0.00024145,2]
[408379583,1773532248576,-500.0,0.00024167,2]
[408379584,1773532248584,-424.74139032,0.0002421,2]
[408379585,1773532248594,-1043.0,0.00024288,2]
[408379586,1773532248603,-1260.0,0.00024288,2]
[408379587,1773532248612,-1214.0,0.00024288,2]
[408379588,1773532248622,-9035.0,0.00024364,2]
[408379589,1773532248631,-2010.59503453,0.00024657,2]
[408379590,1773532248640,-871.43,0.00024658,2]
[408379591,1773532248650,-1000.0,0.00024658,2]
[408379592,1773532248659,-151.0,0.00024658,2]
[408379593,1773532248668,-151.0,0.00024658,2]
[408379594,1773532248677,-151.0,0.00024658,2]
[408379595,1773532248686,-151.0,0.00024658,2]
[408379596,1773532248695,-155.806769,0.00024658,2]
[408379597,1773532248705,-151.0,0.00024658,2]
[408379598,1773532248715,-151.0,0.00024658,2]
[408379599,1773532248725,-151.0,0.00024658,2]
[408379600,1773532248735,-150.0,0.00024658,2]
[408379601,1773532248746,-900.0,0.00024658,7]
[408379602,1773532248755,-851.8323473,0.000248,2]
[408379603,1773532248764,-503.46319922,0.0002485,2]
[408379604,1773532248773,-1094.33199343,0.00024872,2]
[408379605,1773532248783,-244.08751804,0.0002489,2]
[408379606,1773532248792,-500.0,0.00024899,2]
[408379607,1773532248801,-500.0,0.00024899,2]
[408379608,1773532248810,-598418.43193682,0.000249,3]
[408379609,1773532248821,-507.5,0.000249,3]
[408379610,1773532256239,172.0,5.5e-07,2]
[408379611,1773532277864,170.0,0.00013,2]
[408379612,1773532286511,-9161.86669163,0.00013836,2]
[408379613,1773532286704,-10000.01,0.00013836,2]
[408379614,1773532287401,2821.52,0.00011507,2]
[408379615,1773532294225,2008.49,0.00013559,2]
[408379616,1773532294247,504.01,0.00013559,2]
[408379617,1773532294277,176.409,0.00013559,2]
[408379618,1773532295364,-2103.72,0.00013826,2]
[408379619,1773532295390,-5792.57,0.00013826,2]
[408379620,1773532295480,-10000.01,0.00013836,2]
[408379621,1773532424157,3843.08,6.636e-05,2]
[408379622,1773532424351,3843.08,6.986e-05,2]
[408379623,1773532424557,2313.85,7.335e-05,2]
[408379624,1773532424582,1529.23,7.335e-05,2]
[408379625,1773532424751,3843.08,7.684e-05,2]
[408379626,1773532425088,3843.08,8.033e-05,2]
[408379627,1773532425158,784.62,8.383e-05,2]
[408379628,1773532425183,3058.46,8.383e-05,2]
[408379629,1773532425380,1261.131,8.732e-05,2]
[408379630,1773532425400,2581.949,8.732e-05,2]
[408379631,1773532429767,3843.08,9.081e-05,2]
[408379632,1773532429975,3843.08,9.431e-05,2]
[408379633,1773532430165,2313.85,9.78e-05,2]
[408379634,1773532430187,1529.23,9.78e-05,2]
[408379635,1773532430384,888.831,0.00010129,2]
[408379636,1773532430405,2954.249,0.00010129,2]
[408379637,1773532430604,2045.761,0.00010478,2]
[408379638,1773532430626,1797.319,0.00010478,2]
[408379639,1773532431029,3202.691,0.00010828,2]
[408379640,1773532431063,640.389,0.00010828,2]
[408379641,1773532431246,3843.08,0.00011177,2]
[408379642,1773532431442,516.541,0.00011526,2]
[408379643,1773532431467,3326.539,0.00011526,2]
[408379644,1773532431646,1673.471,0.00011876,2]
[408379645,1773532431671,1151.07489063,0.00011876,2]
[408379646,1773532431694,1018.53410937,0.00011876,2]
[408379647,1773532431841,3843.08,0.00012225,2]
[408379648,1773532432041,1156.93,0.00012574,2]
[408379649,1773532432063,2686.15,0.00012574,2]
[408379650,1773532432254,2313.86,0.00012923,2]
[408379651,1773532432277,1529.22,0.00012923,2]
[408379652,1773532432454,3470.79,0.00013273,2]
[408379653,1773532432476,372.29,0.00013273,2]
[408379654,1773532505796,228.244983,0.00013144,2]
[408379655,1773532506528,1852.42,0.00012963,2]
[408379656,1773532522302,-200.0,0.000136,4]
[408379657,1773532522334,-506.90430535,0.00013636,2]
[408379658,1773532522365,-506.90430534,0.00013686,2]
[408379659,1773532522396,-500.0,0.000137,5]
[408379660,1773532522424,-162.09,0.000137,2]
[408379661,1773532522454,-300.0,0.00013735,2]
[408379662,1773532522483,-506.90430534,0.00013735,2]
[408379663,1773532522512,-300.0,0.00013735,2]
[408379664,1773532522544,-1200.0,0.00013735,2]
[408379665,1773532522572,-396.7694005,0.00013736,2]
[408379666,1773532525138,-537.02365467,0.00013736,2]
[408379667,1773532528177,-1074.04730934,0.00013736,2]
[408379668,1773532531264,-2148.09461868,0.00013736,2]
[408379669,1773532534273,-4296.18923736,0.00013736,2]
[408379670,1773532584021,-300.0,0.00013735,2]
[408379671,1773532584053,-4400.01,0.00013735,2]
[408379672,1773532590017,-599.99,0.00013735,2]
[408379673,1773532590048,-300.0,0.00013735,2]
[408379674,1773532590076,-600.0,0.00013736,2]
[408379675,1773532590105,-1407.63152528,0.00013736,2]
[408379676,1773532590134,-177.42494553,0.00013736,2]
[408379677,1773532596046,-3829.91705838,0.00013736,2]
[408379678,1773532596075,-575.97237361,0.00013736,2]
[408379679,1773532596104,-187.52857792,0.00013737,2]
[408379680,1773532625583,-151.0,0.00013737,2]
[408379681,1773532625604,-300.0,0.00013741,2]
[408379682,1773532625627,-5000.0,0.00013742,2]
[408379683,1773532625648,-5000.0,0.00013742,2]
[408379684,1773532625669,-5000.0,0.00013742,2]
[408379685,1773532625690,-600.0,0.00013768,2]
[408379686,1773532625712,-600.0,0.00013768,2]
[408379687,1773532625734,-600.0,0.00013768,2]
[408379688,1773532625755,-800.0,0.000138,5]
[408379689,1773532625775,-423.0,0.00013834,2]
[408379690,1773532625795,-150.0,0.00013834,2]
[408379691,1773532625815,-500.0,0.00013835,2]
[408379692,1773532625836,-500.0,0.00013835,2]
[408379693,1773532625856,-433.20044258,0.00013835,2]
[408379694,1773532625877,-500.0,0.00013835,2]
[408379695,1773532625898,-500.0,0.00013835,2]
[408379696,1773532625918,-500.0,0.00013835,2]
[408379697,1773532625938,-500.0,0.00013835,2]
[408379698,1773532625959,-500.0,0.00013835,2]
[408379699,1773532625979,-500.0,0.00013835,2]
[408379700,1773532626004,-500.0,0.00013835,2]